fUSD/lending_fUSD_20241222
["ID","MTS","AMOUNT","RATE_DAILY","PERIOD"]
[346263019,1734849034481,-518.87511033,0.00019178,2]
[346263020,1734849034491,-59.8317955,0.00019178,2]
[346263021,1734849034503,-440.1682045,0.00019178,2]
[346263022,1734849034512,-99.8317955,0.00019178,2]
[346263023,1734849034524,-411.72830324,0.00019178,2]
[346263024,1734849034533,-123.74169676,0.00019178,2]
[346263029,1734849038483,-376.25830324,0.00019178,2]
[346263030,1734849038493,-500.0,0.00019178,2]
[346263031,1734849038503,-500.0,0.00019178,2]
[346263032,1734849038512,-510.89065729,0.00019178,2]
[346263033,1734849038522,-513.37798312,0.00019178,2]
[346263034,1734849038531,-500.0,0.00019178,2]
[346263035,1734849038540,-500.0,0.00019178,2]
[346263036,1734849038549,-502.51860424,0.00019178,2]
[346263037,1734849038558,-515.71087581,0.00019178,2]
[346263038,1734849038567,-500.0,0.00019178,2]
[346263039,1734849038577,-500.0,0.00019178,2]
[346263040,1734849038586,-645.26445108,0.00019178,2]
[346263041,1734849038596,-500.0,0.00019178,2]
[346263042,1734849038606,-500.0,0.00019178,2]
[346263043,1734849038615,-848.16,0.00019178,2]
[346263044,1734849038625,-500.0,0.00019178,2]
[346263045,1734849038634,-193.59979854,0.00019178,2]
[346263046,1734849038644,-511.3241266,0.00019178,2]
[346263048,1734849038653,-523.38951448,0.00019178,2]
[346263050,1734849038662,-512.06018972,0.00019178,2]
[346263052,1734849038672,-500.0,0.00019178,2]
[346263054,1734849038681,-500.0,0.00019178,2]
[346263056,1734849038690,-511.76634044,0.00019178,2]
[346263058,1734849038700,-248.48363653,0.00019178,2]
[346263060,1734849038710,-506.17910276,0.00019178,2]
[346263062,1734849038719,-507.64160028,0.00019178,2]
[346263064,1734849038728,-500.0,0.00019178,2]
[346263066,1734849038738,-506.58889304,0.00019178,2]
[346263068,1734849038747,-504.01261816,0.00019178,2]
[346263071,1734849038756,-500.0,0.00019178,2]
[346263074,1734849038765,-508.82425175,0.00019178,2]
[346263078,1734849038774,-511.74525649,0.00019178,2]
[346263083,1734849038783,-447.269358,0.00019178,2]
[346263088,1734849038793,-511.70224114,0.00019178,2]
[346263091,1734849038803,-513.35984358,0.00019178,2]
[346263093,1734849038812,-500.0,0.00019178,2]
[346263095,1734849038821,-502.32015448,0.00019178,2]
[346263097,1734849038831,-500.0,0.00019178,2]
[346263099,1734849038840,-513.16343623,0.00019178,2]
[346263101,1734849038849,-205.5,0.00019178,2]
[346263103,1734849038858,-513.22,0.00019178,2]
[346263105,1734849038867,-231.17564199,0.00019178,2]
[346263106,1734849038877,-500.0,0.00019178,2]
[346263107,1734849038886,-942.14,0.00019178,2]
[346263108,1734849038895,-500.0,0.00019178,2]
[346263109,1734849038905,-500.0,0.00019178,2]
[346263110,1734849038914,-503.92132864,0.00019178,2]
[346263111,1734849038924,-297.10212766,0.00019178,2]
[346263112,1734849038933,-309.98053726,0.00019178,2]
[346263113,1734849038943,-500.0,0.00019178,2]
[346263114,1734849038952,-500.0,0.00019178,2]
[346263115,1734849038962,-500.0,0.00019178,2]
[346263116,1734849038971,-500.0,0.00019178,2]
[346263117,1734849038981,-504.77752602,0.00019178,2]
[346263118,1734849038990,-500.0,0.00019178,2]
[346263119,1734849038999,-500.0,0.00019178,2]
[346263120,1734849039009,-500.0,0.00019178,2]
[346263121,1734849039020,-500.0,0.00019178,2]
[346263122,1734849039031,-500.0,0.00019178,2]
[346263123,1734849039040,-500.0,0.00019178,2]
[346263124,1734849039050,-547.2,0.00019178,2]
[346263125,1734849039061,-500.0,0.00019178,2]
[346263126,1734849039070,-500.0,0.00019178,2]
[346263127,1734849039081,-960.5,0.00019178,2]
[346263128,1734849039091,-500.0,0.00019178,2]
[346263129,1734849039102,-500.0,0.00019178,2]
[346263130,1734849039112,-502.14910221,0.00019178,2]
[346263131,1734849039121,-500.0,0.00019178,2]
[346263132,1734849039130,-500.0,0.00019178,2]
[346263133,1734849039139,-1245.41,0.00019178,2]
[346263134,1734849039149,-1053.37,0.00019178,2]
[346263135,1734849039158,-500.0,0.00019178,2]
[346263136,1734849039167,-500.0,0.00019178,2]
[346263137,1734849039177,-500.0,0.00019178,2]
[346263138,1734849039186,-500.0,0.00019178,2]
[346263139,1734849039197,-266.40540023,0.00019178,2]
[346263140,1734849039207,-632.36,0.00019178,2]
[346263141,1734849039216,-631.19,0.00019178,2]
[346263142,1734849039225,-500.0,0.00019178,2]
[346263143,1734849039235,-500.0,0.00019178,2]
[346263144,1734849039244,-500.0,0.00019178,2]
[346263145,1734849039254,-500.0,0.00019178,2]
[346263146,1734849039263,-507.52642004,0.00019178,2]
[346263147,1734849039273,-500.0,0.00019178,2]
[346263148,1734849039282,-500.0,0.00019178,2]
[346263149,1734849039292,-500.0,0.00019178,2]
[346263150,1734849039301,-500.0,0.00019178,2]
[346263151,1734849039311,-500.0,0.00019178,2]
[346263152,1734849039321,-500.0,0.00019178,2]
[346263153,1734849039330,-500.0,0.00019178,2]
[346263154,1734849039340,-500.0,0.00019178,2]
[346263155,1734849039351,-500.0,0.00019178,2]
[346263156,1734849039360,-500.0,0.00019178,2]
[346263157,1734849039370,-2154.37,0.00019178,2]
[346263158,1734849039379,-500.0,0.00019178,2]
[346263159,1734849039389,-500.0,0.00019178,2]
[346263160,1734849039399,-500.0,0.00019178,2]
[346263161,1734849039408,-500.0,0.00019178,2]
[346263162,1734849039418,-500.0,0.00019178,2]
[346263163,1734849039427,-500.0,0.00019178,2]
[346263164,1734849039437,-500.0,0.00019178,2]
[346263165,1734849039446,-500.0,0.00019178,2]
[346263166,1734849039457,-500.0,0.00019178,2]
[346263167,1734849039466,-500.0,0.00019178,2]
[346263168,1734849039476,-500.0,0.00019178,2]
[346263169,1734849039485,-500.0,0.00019178,2]
[346263170,1734849039495,-500.0,0.00019178,2]
[346263171,1734849039504,-500.0,0.00019178,2]
[346263172,1734849039513,-500.0,0.00019178,2]
[346263173,1734849039523,-923.24,0.00019178,2]
[346263174,1734849039532,-500.0,0.00019178,2]
[346263175,1734849039541,-500.0,0.00019178,2]
[346263176,1734849039551,-500.0,0.00019178,2]
[346263177,1734849039560,-500.0,0.00019178,2]
[346263178,1734849039569,-500.0,0.00019178,2]
[346263179,1734849039579,-645.84,0.00019178,2]
[346263180,1734849039588,-500.0,0.00019178,2]
[346263181,1734849039597,-500.0,0.00019178,2]
[346263182,1734849039608,-1513.67,0.00019178,2]
[346263183,1734849039618,-500.0,0.00019178,2]
[346263184,1734849039628,-578.39064731,0.00019178,2]
[346263185,1734849039637,-568.99,0.00019178,2]
[346263186,1734849039648,-500.0,0.00019178,2]
[346263187,1734849039659,-1371.983857,0.00019178,2]
[346263188,1734849039669,-153.566144,0.00019178,2]
[346263189,1734849039678,-669.97,0.00019178,2]
[346263190,1734849039688,-500.0,0.00019178,2]
[346263191,1734849039699,-500.0,0.00019178,2]
[346263192,1734849039709,-675.16,0.00019178,2]
[346263193,1734849039718,-500.0,0.00019178,2]
[346263194,1734849039728,-500.0,0.00019178,2]
[346263195,1734849039737,-500.0,0.00019178,2]
[346263196,1734849039748,-500.0,0.00019178,2]
[346263197,1734849039757,-500.0,0.00019178,2]
[346263198,1734849039768,-500.0,0.00019178,2]
[346263199,1734849039778,-500.0,0.00019178,2]
[346263200,1734849039789,-500.0,0.00019178,2]
[346263201,1734849039803,-500.0,0.00019178,2]
[346263202,1734849039812,-500.0,0.00019178,2]
[346263203,1734849039822,-500.0,0.00019178,2]
[346263204,1734849039831,-500.0,0.00019178,2]
[346263205,1734849039840,-500.0,0.00019178,2]
[346263206,1734849039849,-500.0,0.00019178,2]
[346263207,1734849039858,-500.0,0.00019178,2]
[346263208,1734849039867,-500.0,0.00019178,2]
[346263209,1734849039877,-500.0,0.00019178,2]
[346263210,1734849039887,-1055.086605,0.00019178,2]
[346263211,1734849039897,-500.0,0.00019178,2]
[346263212,1734849039907,-500.0,0.00019178,2]
[346263213,1734849039916,-500.0,0.00019178,2]
[346263214,1734849039928,-500.0,0.00019178,2]
[346263215,1734849039937,-500.0,0.00019178,2]
[346263216,1734849039947,-304.67128269,0.00019178,2]
[346263217,1734849039956,-1039.25,0.00019178,2]
[346263218,1734849039965,-500.0,0.00019178,2]
[346263219,1734849039974,-500.0,0.00019178,2]
[346263220,1734849039984,-567.25,0.00019178,2]
[346263221,1734849039993,-500.0,0.00019178,2]
[346263222,1734849040002,-500.0,0.00019178,2]
[346263223,1734849040012,-500.0,0.00019178,2]
[346263224,1734849040025,-578.8,0.00019178,2]
[346263225,1734849040034,-500.0,0.00019178,2]
[346263226,1734849040043,-500.0,0.00019178,2]
[346263227,1734849040052,-500.0,0.00019178,2]
[346263229,1734849040062,-500.0,0.00019178,2]
[346263230,1734849040072,-500.0,0.00019178,2]
[346263232,1734849040081,-500.0,0.00019178,2]
[346263233,1734849040090,-500.0,0.00019178,2]
[346263234,1734849040100,-500.0,0.00019178,2]
[346263235,1734849040109,-500.0,0.00019178,2]
[346263236,1734849040118,-500.0,0.00019178,2]
[346263237,1734849040128,-500.0,0.00019178,2]
[346263238,1734849040137,-797.89,0.00019178,2]
[346263239,1734849040146,-500.0,0.00019178,2]
[346263240,1734849040155,-500.0,0.00019178,2]
[346263241,1734849040165,-500.0,0.00019178,2]
[346263242,1734849040174,-500.0,0.00019178,2]
[346263243,1734849040183,-500.0,0.00019178,2]
[346263244,1734849040192,-500.0,0.00019178,2]
[346263245,1734849040202,-500.0,0.00019178,2]
[346263246,1734849040211,-500.0,0.00019178,2]
[346263247,1734849040221,-500.0,0.00019178,2]
[346263248,1734849040230,-500.0,0.00019178,2]
[346263249,1734849040239,-500.0,0.00019178,2]
[346263250,1734849040249,-500.0,0.00019178,2]
[346263251,1734849040257,-500.0,0.00019178,2]
[346263252,1734849040266,-523.85,0.00019178,2]
[346263253,1734849040275,-500.0,0.00019178,2]
[346263254,1734849040285,-578.97048289,0.00019178,2]
[346263255,1734849040293,-500.0,0.00019178,2]
[346263256,1734849040302,-500.0,0.00019178,2]
[346263257,1734849040312,-500.0,0.00019178,2]
[346263258,1734849040321,-500.0,0.00019178,2]
[346263259,1734849040330,-500.0,0.00019178,2]
[346263260,1734849040339,-500.0,0.00019178,2]
[346263261,1734849040348,-500.0,0.00019178,2]
[346263262,1734849040357,-500.0,0.00019178,2]
[346263263,1734849040366,-500.0,0.00019178,2]
[346263264,1734849040375,-500.0,0.00019178,2]
[346263265,1734849040384,-500.0,0.00019178,2]
[346263266,1734849040393,-1407.5,0.00019178,2]
[346263267,1734849040402,-500.0,0.00019178,2]
[346263268,1734849040412,-500.0,0.00019178,2]
[346263269,1734849040421,-500.0,0.00019178,2]
[346263270,1734849040429,-598.2,0.00019178,2]
[346263271,1734849040438,-500.0,0.00019178,2]
[346263272,1734849040447,-1639.6,0.00019178,2]
[346263273,1734849040456,-500.0,0.00019178,2]
[346263274,1734849040465,-500.0,0.00019178,2]
[346263275,1734849040476,-500.0,0.00019178,2]
[346263276,1734849040485,-500.0,0.00019178,2]
[346263277,1734849040494,-500.0,0.00019178,2]
[346263278,1734849040504,-510.39451496,0.00019178,2]
[346263279,1734849040513,-500.0,0.00019178,2]
[346263280,1734849040522,-1811.14,0.00019178,2]
[346263281,1734849040531,-500.0,0.00019178,2]
[346263282,1734849040540,-500.0,0.00019178,2]
[346263283,1734849040549,-500.0,0.00019178,2]
[346263284,1734849040559,-389.8913863,0.00019178,2]
[346263285,1734849040567,-887.03,0.00019178,2]
[346263286,1734849040576,-500.0,0.00019178,2]
[346263287,1734849040586,-1187.05,0.00019178,2]
[346263288,1734849040596,-500.0,0.00019178,2]
[346263289,1734849040605,-500.0,0.00019178,2]
[346263290,1734849040615,-2931.48,0.00019178,2]
[346263291,1734849040624,-500.0,0.00019178,2]
[346263292,1734849040633,-500.0,0.00019178,2]
[346263293,1734849040642,-500.0,0.00019178,2]
[346263294,1734849040660,-881.19,0.00019178,2]
[346263295,1734849040672,-500.0,0.00019178,2]
[346263296,1734849040681,-500.0,0.00019178,2]
[346263297,1734849040690,-500.0,0.00019178,2]
[346263298,1734849040700,-500.0,0.00019178,2]
[346263299,1734849040715,-813.97,0.00019178,2]
[346263300,1734849040724,-500.0,0.00019178,2]
[346263301,1734849040734,-545.51,0.00019178,2]
[346263302,1734849040744,-500.0,0.00019178,2]
[346263303,1734849040753,-500.0,0.00019178,2]
[346263304,1734849040763,-500.0,0.00019178,2]
[346263305,1734849040772,-500.0,0.00019178,2]
[346263306,1734849040782,-500.0,0.00019178,2]
[346263307,1734849040791,-500.0,0.00019178,2]
[346263308,1734849040801,-500.0,0.00019178,2]
[346263310,1734849040810,-500.0,0.00019178,2]
[346263311,1734849040819,-500.0,0.00019178,2]
[346263312,1734849040829,-730.97,0.00019178,2]
[346263313,1734849040838,-500.0,0.00019178,2]
[346263314,1734849040848,-500.0,0.00019178,2]
[346263315,1734849040857,-2823.97,0.00019178,2]
[346263316,1734849040866,-911.2,0.00019178,2]
[346263317,1734849040876,-2061.71,0.00019178,2]
[346263318,1734849040886,-739.61,0.00019178,2]
[346263319,1734849040897,-1567.92,0.00019178,2]
[346263320,1734849040908,-500.0,0.00019178,2]
[346263321,1734849040919,-1407.04,0.00019178,2]
[346263322,1734849040929,-399.0571665,0.00019178,2]
[346263323,1734849040940,-4354.06,0.00019178,2]
[346263324,1734849040949,-500.0,0.00019178,2]
[346263325,1734849040962,-500.0,0.00019178,2]
[346263326,1734849040971,-500.0,0.00019178,2]
[346263327,1734849040981,-500.0,0.00019178,2]
[346263328,1734849040990,-870.2,0.00019178,2]
[346263329,1734849040999,-1170.54,0.00019178,2]
[346263330,1734849041009,-977.1,0.00019178,2]
[346263331,1734849041020,-500.0,0.00019178,2]
[346263332,1734849041031,-1038.05,0.00019178,2]
[346263333,1734849041041,-548.69,0.00019178,2]
[346263334,1734849041050,-500.0,0.00019178,2]
[346263335,1734849041059,-500.0,0.00019178,2]
[346263336,1734849041071,-500.0,0.00019178,2]
[346263337,1734849041081,-500.0,0.00019178,2]
[346263338,1734849041091,-15083.66,0.00019178,2]
[346263339,1734849041102,-660.75,0.00019178,2]
[346263340,1734849041112,-500.0,0.00019178,2]
[346263341,1734849041121,-919.05,0.00019178,2]
[346263342,1734849041131,-500.0,0.00019178,2]
[346263343,1734849041140,-500.0,0.00019178,2]
[346263344,1734849041149,-4947.68,0.00019178,2]
[346263345,1734849041158,-500.0,0.00019178,2]
[346263346,1734849041168,-572.0,0.00019178,2]
[346263347,1734849041177,-500.0,0.00019178,2]
[346263348,1734849041186,-500.0,0.00019178,2]
[346263349,1734849041196,-1228.55,0.00019178,2]
[346263350,1734849041209,-500.0,0.00019178,2]
[346263351,1734849041218,-500.0,0.00019178,2]
[346263352,1734849041228,-846.72,0.00019178,2]
[346263353,1734849041237,-838.4,0.00019178,2]
[346263354,1734849041248,-500.0,0.00019178,2]
[346263355,1734849041257,-622.29,0.00019178,2]
[346263356,1734849041267,-1069.61,0.00019178,2]
[346263357,1734849041277,-500.0,0.00019178,2]
[346263358,1734849041287,-767.17,0.00019178,2]
[346263359,1734849041297,-500.0,0.00019178,2]
[346263360,1734849041307,-500.0,0.00019178,2]
[346263361,1734849041317,-500.0,0.00019178,2]
[346263362,1734849041327,-649.29,0.00019178,2]
[346263363,1734849041336,-500.0,0.00019178,2]
[346263364,1734849041346,-681.55,0.00019178,2]
[346263365,1734849041356,-5257.79,0.00019178,2]
[346263366,1734849041366,-500.0,0.00019178,2]
[346263367,1734849041375,-643.79766525,0.00019178,2]
[346263368,1734849041385,-500.0,0.00019178,2]
[346263369,1734849041395,-500.0,0.00019178,2]
[346263370,1734849041404,-2005.26,0.00019178,2]
[346263371,1734849041413,-1054.88,0.00019178,2]
[346263372,1734849041424,-642.42,0.00019178,2]
[346263373,1734849041434,-500.0,0.00019178,2]
[346263374,1734849041444,-500.0,0.00019178,2]
[346263375,1734849041454,-500.0,0.00019178,2]
[346263376,1734849041463,-631.64,0.00019178,2]
[346263377,1734849041473,-2829.96,0.00019178,2]
[346263378,1734849041482,-500.0,0.00019178,2]
[346263379,1734849041492,-500.0,0.00019178,2]
[346263380,1734849041502,-500.0,0.00019178,2]
[346263381,1734849041511,-500.0,0.00019178,2]
[346263382,1734849041520,-3809.44,0.00019178,2]
[346263383,1734849041530,-500.0,0.00019178,2]
[346263384,1734849041539,-4348.76,0.00019178,2]
[346263385,1734849041548,-500.0,0.00019178,2]
[346263386,1734849041558,-1151.04,0.00019178,2]
[346263387,1734849041567,-861.03,0.00019178,2]
[346263388,1734849041577,-1574.76,0.00019178,2]
[346263389,1734849041587,-819.63,0.00019178,2]
[346263390,1734849041596,-500.0,0.00019178,2]
[346263391,1734849041606,-500.0,0.00019178,2]
[346263392,1734849041802,-608.73,0.00019178,2]
[346263393,1734849041812,-783.99,0.00019178,2]
[346263394,1734849041821,-500.0,0.00019178,2]
[346263395,1734849041834,-500.0,0.00019178,2]
[346263396,1734849041847,-4044.87628878,0.00019178,2]
[346263397,1734849041870,-14034.64371122,0.00019178,2]
[346263398,1734849041880,-2472.25,0.00019178,2]
[346263399,1734849041890,-2570.11,0.00019178,2]
[346263400,1734849041899,-949.68,0.00019178,2]
[346263401,1734849041911,-1863.66905023,0.00019178,2]
[346263402,1734849042005,-142.60094977,0.00019178,2]
[346263403,1734849042017,-381.30305023,0.00019178,2]
[346263404,1734849042029,-394.60694977,0.00019178,2]
[346263405,1734849042039,-500.0,0.00019178,2]
[346263406,1734849042048,-500.0,0.00019178,2]
[346263407,1734849042058,-3521.09,0.00019178,2]
[346263408,1734849042068,-6323.61173435,0.00019178,2]
[346263409,1734849042080,-494.62385209,0.00019178,2]
[346263410,1734849042091,-61.99441356,0.00019178,2]
[346263411,1734849042102,-500.0,0.00019178,2]
[346263412,1734849042111,-1153.45,0.00019178,2]
[346263413,1734849042120,-1503.45,0.00019178,2]
[346263414,1734849042130,-1488.98,0.00019178,2]
[346263415,1734849042139,-1124.52,0.00019178,2]
[346263416,1734849042148,-500.0,0.00019178,2]
[346263417,1734849042157,-1038.88,0.00019178,2]
[346263418,1734849042166,-579.99,0.00019178,2]
[346263419,1734849042175,-249.72,0.00019178,2]
[346263420,1734849042185,-910.23,0.00019178,2]
[346263421,1734849042194,-1725.35,0.00019178,2]
[346263422,1734849042204,-2707.35,0.00019178,2]
[346263423,1734849042214,-500.0,0.00019178,2]
[346263424,1734849042224,-500.0,0.00019178,2]
[346263425,1734849042233,-500.0,0.00019178,2]
[346263426,1734849042243,-8581.97,0.00019178,2]
[346263427,1734849042252,-766.2,0.00019178,2]
[346263428,1734849042261,-500.0,0.00019178,2]
[346263429,1734849042271,-894.34,0.00019178,2]
[346263430,1734849042280,-500.0,0.00019178,2]
[346263431,1734849042290,-1278.01,0.00019178,2]
[346263432,1734849042299,-503.34,0.00019178,2]
[346263433,1734849042308,-500.0,0.00019178,2]
[346263434,1734849042317,-667.38,0.00019178,2]
[346263435,1734849042327,-500.0,0.00019178,2]
[346263436,1734849042337,-4182.35,0.00019178,2]
[346263437,1734849042346,-1237.06,0.00019178,2]
[346263438,1734849042355,-12265.07,0.00019178,2]
[346263439,1734849042365,-500.0,0.00019178,2]
[346263440,1734849042374,-10572.53,0.00019178,2]
[346263441,1734849042383,-5523.66,0.00019178,2]
[346263442,1734849042393,-500.0,0.00019178,2]
[346263443,1734849042402,-500.0,0.00019178,2]
[346263444,1734849042412,-6210.17,0.00019178,2]
[346263445,1734849042422,-205.2616812,0.00019178,2]
[346263446,1734849042431,-230.22861142,0.00019178,2]
[346263447,1734849042440,-651.82,0.00019178,2]
[346263448,1734849042456,-2662.25,0.00019178,2]
[346263449,1734849042473,-2003.12,0.00019178,2]
[346263450,1734849042482,-500.0,0.00019178,2]
[346263451,1734849042491,-750.58,0.00019178,2]
[346263452,1734849042500,-500.0,0.00019178,2]
[346263453,1734849042510,-4663.8,0.00019178,2]
[346263454,1734849042519,-500.0,0.00019178,2]
[346263455,1734849042528,-500.0,0.00019178,2]
[346263456,1734849042537,-520.49159974,0.00019178,2]
[346263457,1734849042546,-4181.95,0.00019178,2]
[346263458,1734849042555,-500.0,0.00019178,2]
[346263459,1734849042564,-500.0,0.00019178,2]
[346263460,1734849042573,-627.07,0.00019178,2]
[346263461,1734849042582,-624.84706113,0.00019178,2]
[346263462,1734849042591,-500.0,0.00019178,2]
[346263463,1734849042601,-1000.0,0.00019178,2]
[346263464,1734849042610,-500.0,0.00019178,2]
[346263465,1734849042619,-500.0,0.00019178,2]
[346263466,1734849042628,-3528.71,0.00019178,2]
[346263467,1734849042637,-500.0,0.00019178,2]
[346263468,1734849042646,-502.51,0.00019178,2]
[346263469,1734849042655,-902.08,0.00019178,2]
[346263470,1734849042664,-500.0,0.00019178,2]
[346263471,1734849042673,-500.0,0.00019178,2]
[346263472,1734849042682,-500.0,0.00019178,2]
[346263473,1734849042692,-2248.15,0.00019178,2]
[346263474,1734849042701,-1992.93,0.00019178,2]
[346263475,1734849042712,-990.97,0.00019178,2]
[346263476,1734849042721,-500.0,0.00019178,2]
[346263477,1734849042730,-500.0,0.00019178,2]
[346263478,1734849042739,-2116.88,0.00019178,2]
[346263479,1734849042748,-997.89,0.00019178,2]
[346263480,1734849042757,-500.0,0.00019178,2]
[346263481,1734849042766,-500.0,0.00019178,2]
[346263482,1734849042775,-500.0,0.00019178,2]
[346263483,1734849042785,-628.63,0.00019178,2]
[346263484,1734849042793,-500.0,0.00019178,2]
[346263485,1734849042802,-741.9,0.00019178,2]
[346263486,1734849042812,-500.0,0.00019178,2]
[346263487,1734849042821,-500.0,0.00019178,2]
[346263488,1734849042831,-500.0,0.00019178,2]
[346263489,1734849042840,-3770.0,0.00019212,2]
[346263490,1734849042849,-818.0,0.00019212,2]
[346263491,1734849042858,-531.933,0.00019212,2]
[346263492,1734849042867,-1265.0,0.00019212,2]
[346263493,1734849042876,-150.0,0.00019212,2]
[346263494,1734849042885,-3886.0,0.00019212,2]
[346263495,1734849042894,-696.406,0.00019212,2]
[346263496,1734849042903,-812.623,0.00019212,2]
[346263497,1734849042912,-244.106,0.00019263,2]
[346263498,1734849042922,-165.15342726,0.00019352,2]
[346263499,1734849042931,-172.95,0.00019394,2]
[346263500,1734849042940,-154.41,0.00019442,2]
[346263501,1734849042949,-154.41,0.00019442,2]
[346263502,1734849042960,-430.59147552,0.00019444,2]
[346263503,1734849042969,-203.09,0.00019445,2]
[346263504,1734849042978,-22683.03,0.00019445,2]
[346263505,1734849042988,-6695.0528752,0.0001945,2]
[346263506,1734849042997,-977292.51113312,0.00019452,3]
[346263507,1734849043009,-1071491.89577143,0.00019452,3]
[346263508,1734849043019,-14952.43632432,0.00019452,3]
[346263509,1734849043031,-500.0,0.00019452,2]
[346263510,1734849043041,-500.0,0.00019452,2]
[346263511,1734849043050,-500.0,0.00019452,2]
[346263512,1734849043059,-500.0,0.00019452,2]
[346263514,1734849043070,-500.0,0.00019452,2]
[346263515,1734849043080,-500.0,0.00019452,2]
[346263517,1734849043090,-500.0,0.00019452,2]
[346263518,1734849043100,-500.0,0.00019452,2]
[346263520,1734849043109,-500.0,0.00019452,2]
[346263521,1734849043120,-500.0,0.00019452,2]
[346263522,1734849043129,-500.0,0.00019452,2]
[346263523,1734849043138,-617.08493981,0.00019452,2]
[346263524,1734849043148,-500.0,0.00019452,2]
[346263525,1734849043158,-500.0,0.00019452,2]
[346263526,1734849043167,-500.0,0.00019452,2]
[346263527,1734849043177,-500.0,0.00019452,2]
[346263528,1734849043186,-500.0,0.00019452,2]
[346263529,1734849043197,-500.0,0.00019452,2]
[346263530,1734849043208,-500.0,0.00019452,2]
[346263531,1734849043218,-500.0,0.00019452,2]
[346263532,1734849043230,-500.0,0.00019452,2]
[346263533,1734849043238,-500.0,0.00019452,2]
[346263534,1734849043248,-500.0,0.00019452,2]
[346263535,1734849043257,-500.0,0.00019452,2]
[346263536,1734849043266,-569.2,0.00019452,2]
[346263537,1734849043276,-310.36732647,0.00019452,2]
[346263538,1734849043285,-500.0,0.00019452,2]
[346263539,1734849043294,-500.0,0.00019452,2]
[346263540,1734849043303,-500.0,0.00019452,2]
[346263541,1734849043312,-500.0,0.00019452,2]
[346263542,1734849043321,-500.0,0.00019452,2]
[346263543,1734849043331,-346.68,0.00019452,2]
[346263544,1734849043340,-848.16,0.00019452,2]
[346263545,1734849043350,-500.0,0.00019452,2]
[346263546,1734849043359,-500.0,0.00019452,2]
[346263547,1734849043368,-500.0,0.00019452,2]
[346263548,1734849043377,-513.22,0.00019452,2]
[346263549,1734849043386,-508.0,0.00019452,2]
[346263550,1734849043395,-942.14,0.00019452,2]
[346263551,1734849043405,-500.0,0.00019452,2]
[346263552,1734849043414,-500.0,0.00019452,2]
[346263553,1734849043424,-500.0,0.00019452,2]
[346263554,1734849043433,-500.0,0.00019452,2]
[346263555,1734849043442,-547.2,0.00019452,2]
[346263556,1734849043451,-151.31244064,0.00019452,2]
[346263557,1734849043462,-500.0,0.00019452,2]
[346263558,1734849043471,-960.5,0.00019452,2]
[346263559,1734849043480,-500.0,0.00019452,2]
[346263560,1734849043489,-500.0,0.00019452,2]
[346263561,1734849043499,-500.0,0.00019452,2]
[346263562,1734849043508,-500.0,0.00019452,2]
[346263563,1734849043517,-1245.41,0.00019452,2]